Workbook

Sheet المبيعات
A1: كود العملية | B1: التاريخ | C1: الزبون | D1: اجمالي المبلغ | S1: Helper column
A2: 1 | B2: 2019-01-01 | C2: احمد | D2: =SUM(G4:M4) -> 2600 | F2: السلعة | G2: 1001 | H2: 1002 | I2: 1003 | J2: 1004 | O2: السلعة | P2: 1004 | S2: =IF(F2="","",SUMPRODUCT(--($G2:$M2=$P$6)*$G3:$M3)) -> 5
F3: الكمية | G3: 1 | H3: 2 | I3: 5 | J3: 5 | O3: الكمية | P3: 8 | S3: =IF(F3="","",SUMPRODUCT(--($G3:$M3=$P$6)*$G4:$M4)) -> 0
F4: السعر | G4: =VLOOKUP(G2,المخازن!$A$2:$C$6,2,FALSE)*G3 -> 200 | H4: =VLOOKUP(H2,المخازن!$A$2:$C$6,2,FALSE)*H3 -> 400 | I4: =VLOOKUP(I2,المخازن!$A$2:$C$6,2,FALSE)*I3 -> 1000 | J4: =VLOOKUP(J2,المخازن!$A$2:$C$6,2,FALSE)*J3 -> 1000 | S4: 0
A5: 2 | B5: 2019-01-02 | C5: ناصر | D5: =SUM(G7:M7) -> 4000 | F5: السلعة | G5: 2001 | H5: 1001 | I5: 2005 | J5: 1003 | S5: 0
F6: الكمية | G6: 1 | H6: 2 | I6: 3 | J6: 6 | O6: السلعة | P6: 1004 | S6: 0
F7: السعر | G7: =VLOOKUP(G5,المخازن!$A$2:$C$14,2,FALSE)*G6 -> 600 | H7: =VLOOKUP(H5,المخازن!$A$2:$C$14,2,FALSE)*H6 -> 400 | I7: =VLOOKUP(I5,المخازن!$A$2:$C$14,2,FALSE)*I6 -> 1800 | J7: =VLOOKUP(J5,المخازن!$A$2:$C$14,2,FALSE)*J6 -> 1200 | O7: الكمية | P7: =SUM(S2:S100) -> 8 | S7: 0
A8: 2 | B8: 2019-01-03 | C8: نعيم | D8: =SUM(G10:M10) -> 9400 | F8: السلعة | G8: 2002 | H8: 2003 | I8: 2004 | J8: 2005 | K8: 1001 | L8: 1004 | M8: 1003 | S8: 3
F9: الكمية | G9: 1 | H9: 2 | I9: 3 | J9: 6 | K9: 2 | L9: 3 | M9: 6 | S9: 0
F10: السعر | G10: =VLOOKUP(G8,المخازن!$A$2:$C$14,2,FALSE)*G9 -> 600 | H10: =VLOOKUP(H8,المخازن!$A$2:$C$14,2,FALSE)*H9 -> 1200 | I10: =VLOOKUP(I8,المخازن!$A$2:$C$14,2,FALSE)*I9 -> 1800 | J10: =VLOOKUP(J8,المخازن!$A$2:$C$14,2,FALSE)*J9 -> 3600 | K10: =VLOOKUP(K8,المخازن!$A$2:$C$14,2,FALSE)*K9 -> 400 | L10: =VLOOKUP(L8,المخازن!$A$2:$C$14,2,FALSE)*L9 -> 600 | M10: =VLOOKUP(M8,المخازن!$A$2:$C$14,2,FALSE)*M9 -> 1200 | S10: 0
P11: by formula
S67: =IF(F67="","",SUMPRODUCT(--($G67:$M67=$P$6)*$G68:$M68)) -> 

Sheet المخازن
A1: كود السلعة | B1: سعر السلعة | C1: اجمالي المخزون
A2: 1001 | B2: 200 | C2: 5
A3: 1002 | B3: 200 | C3: 11
A4: 1003 | B4: 200 | C4: 4
A5: 1004 | B5: 200 | C5: 2
A6: 1005 | B6: 200 | C6: 10
A7: 2001 | B7: 600 | C7: 15
A8: 2002 | B8: 600 | C8: 12
A9: 2003 | B9: 600 | C9: 5
A10: 2004 | B10: 600 | C10: 4
A11: 2005 | B11: 600 | C11: 5
A12: 2006 | B12: 600 | C12: 4
A13: 2007 | B13: 600 | C13: 21
A14: 2008 | B14: 600 | C14: 6
